bitfinex/quotes_SOLUSD_20250206
["timestamp","ask_amount","ask_price","bid_price","bid_amount"]
[1738841260427,39.61813734,199.92,199.91,0.03]
[1738841260750,6.6568,199.91,199.9,0.0001]
[1738841260953,30.0,199.89,199.88,0.0001]
[1738841261257,43.49813734,199.89,199.88,0.0001]
[1738841261853,33.88,199.89,199.88,0.0001]
[1738841262368,43.49813734,199.89,199.88,0.0001]
[1738841263070,38.8827,199.89,199.88,0.0001]
[1738841264370,48.50083734,199.89,199.88,0.0001]
[1738841267362,38.8827,199.89,199.88,0.0001]
[1738841268271,38.98929025,199.89,199.88,0.0001]
[1738841272155,48.60742759,199.89,199.88,0.0001]
[1738841272570,63.27025612,199.89,199.88,0.0001]
[1738841273079,30.0,199.81,199.8,0.03]
[1738841273280,39.61813734,199.81,199.8,0.03]
[1738841274064,44.62283734,199.81,199.8,0.03]
[1738841274579,44.62283734,199.81,199.71,9.64813734]
[1738841274580,30.0,199.72,199.71,0.03]
[1738841275364,39.61813734,199.72,199.71,0.03]
[1738841275982,44.62513734,199.72,199.71,0.03]
[1738841278583,50.07665403,199.72,199.71,0.03]
[1738841280307,35.007,199.72,199.71,0.03]
[1738841280780,30.0,199.72,199.71,0.03]
[1738841281879,35.007,199.72,199.71,0.03]
[1738841282704,50.07665403,199.72,199.71,0.03]
[1738841283075,64.86497256,199.72,199.71,0.03]
[1738841283279,30.0,199.69,199.68,0.03]
[1738841283490,45.06965403,199.69,199.68,0.03]
[1738841284487,30.0,199.69,199.68,0.03]
[1738841284700,45.06965403,199.69,199.68,0.03]
[1738841284877,50.07735403,199.69,199.68,0.03]
[1738841285300,30.0,199.59,199.56,22.68655403]
[1738841285503,30.0,199.57,199.53,15.06965403]
[1738841285716,5.5583,199.63,199.52,15.06965403]
[1738841285717,30.0,199.55,199.52,15.06965403]
[1738841286118,30.0,199.55,199.53,15.06965403]
[1738841286288,5.5583,199.63,199.51,31.09965403]
[1738841286289,30.0,199.53,199.51,31.09965403]
[1738841286711,30.0,199.53,199.52,15.06965403]
[1738841286906,30.0,199.57,199.52,15.06965403]
[1738841287110,30.0,199.57,199.56,15.06965403]
[1738841287297,30.0,199.59,199.56,15.06965403]
[1738841287496,30.0,199.59,199.58,15.06965403]
[1738841288194,0.09080942,199.59,199.58,15.06965403]
[1738841289205,30.09080942,199.59,199.57,15.06965403]
[1738841289518,30.09080942,199.59,199.53,0.12549]
[1738841289519,30.09080942,199.59,199.56,15.06965403]
[1738841289815,30.0,199.57,199.53,15.06965403]
[1738841290318,30.0,199.57,199.54,15.06965403]
[1738841290520,30.09080942,199.59,199.56,15.06965403]
[1738841290723,0.09080942,199.59,199.58,15.06965403]
[1738841292223,30.09080942,199.59,199.56,15.06965403]
[1738841292428,30.0,199.57,199.54,35.06965403]
[1738841292724,30.0,199.57,199.54,15.06965403]
[1738841295131,30.0,199.57,199.56,15.06965403]
[1738841295309,30.09080942,199.59,199.56,15.06965403]
[1738841295506,30.09080942,199.59,199.58,15.06965403]
[1738841296127,0.09080942,199.59,199.58,15.06965403]
[1738841296510,30.09080942,199.59,199.58,15.06965403]
[1738841296706,30.09080942,199.59,199.56,15.06965403]
[1738841297933,30.0,199.57,199.56,15.06965403]
[1738841299409,30.0,199.57,199.56,15.09965403]
[1738841299931,30.09080942,199.59,199.56,15.09965403]
[1738841300115,30.09080942,199.59,199.58,15.06965403]
[1738841302537,30.09080942,199.59,199.57,15.06965403]
[1738841303953,30.0,199.57,199.56,0.03]
[1738841304813,30.0,199.57,199.56,15.09965403]
[1738841305931,30.0,199.57,199.56,0.03]
[1738841306745,30.0,199.57,199.56,15.09965403]
[1738841306942,30.09080942,199.59,199.56,15.09965403]
[1738841307116,30.09080942,199.59,199.56,0.03]
[1738841307117,30.0,199.57,199.56,0.03]
[1738841308239,0.10856828,199.57,199.56,15.09965403]
[1738841310524,0.10856828,199.57,199.56,20.11065403]
[1738841312930,0.10856828,199.57,199.56,15.09965403]
[1738841313345,0.10856828,199.57,199.56,0.03]
[1738841313346,30.10856828,199.57,199.56,0.03]
[1738841315356,35.11926828,199.57,199.56,0.03]
[1738841317345,30.10856828,199.57,199.56,0.03]
[1738841317871,35.11926828,199.57,199.56,0.03]
[1738841318162,30.10856828,199.57,199.56,0.03]
[1738841319669,30.10856828,199.57,199.56,15.09965403]
[1738841319872,30.10856828,199.57,199.56,0.03]
[1738841320446,35.11926828,199.57,199.56,0.03]
[1738841320962,30.10856828,199.57,199.56,0.03]
[1738841322044,35.11926828,199.57,199.56,0.03]
[1738841324673,50.18892231,199.57,199.56,0.03]
[1738841326645,70.76427084,199.57,199.56,0.03]
[1738841326957,71.01525084,199.57,199.56,0.0001]
[1738841327164,69.76427084,199.57,199.56,0.0001]
[1738841327477,70.76427084,199.57,199.56,0.0001]
[1738841327875,71.01525084,199.57,199.56,0.0001]
[1738841328042,71.1128396,199.57,199.56,0.0001]
[1738841328248,71.00427132,199.57,199.56,0.0001]
[1738841329294,72.00427132,199.57,199.56,0.0001]
[1738841330763,66.59467964,199.57,199.56,0.0001]
[1738841331866,49.76835111,199.57,199.56,0.0001]
[1738841332264,30.0,199.53,199.52,0.03]
[1738841337753,30.0,199.53,199.52,9.69006235]
[1738841338185,0.16058876,199.57,199.52,14.70206235]
[1738841338186,30.0,199.55,199.52,14.70206235]
[1738841338489,30.0,199.55,199.54,9.66006235]
[1738841339491,30.16058876,199.57,199.54,9.66006235]
[1738841339672,30.16058876,199.57,199.56,9.66006235]
[1738841341403,30.0,199.55,199.54,5.0114]
[1738841341562,30.0,199.55,199.54,14.67146235]
[1738841343257,30.16058876,199.57,199.54,14.67146235]
[1738841343594,30.0,199.55,199.54,14.67146235]
[1738841343983,30.16058876,199.57,199.54,14.67146235]
[1738841344181,30.16058876,199.57,199.56,9.66006235]
[1738841348099,30.27041905,199.57,199.56,9.66006235]
[1738841348308,30.17283029,199.57,199.56,9.66006235]
[1738841349223,0.17283029,199.57,199.56,14.67106235]
[1738841350010,0.17283029,199.57,199.56,14.79655235]
[1738841352807,0.17283029,199.57,199.56,14.67106235]
[1738841353387,30.17283029,199.57,199.56,9.66006235]
[1738841353599,30.0,199.55,199.54,9.69006235]
[1738841360400,30.17283029,199.57,199.54,9.69006235]
[1738841360607,30.17283029,199.57,199.56,9.66006235]
[1738841365528,0.17283029,199.57,199.56,14.67106235]
[1738841366527,0.17283029,199.57,199.56,22.85286235]
[1738841368232,0.15495056,199.57,199.56,22.85286235]
[1738841368838,0.15495056,199.57,199.56,23.97835235]
[1738841369617,0.15495056,199.57,199.56,37.64118088]
[1738841369818,0.15495056,199.57,199.56,38.39254238]
[1738841370016,0.10450931,199.58,199.56,38.39254238]
[1738841370322,0.09992377,199.6,199.59,0.12549]
[1738841370523,0.09992377,199.6,199.59,49.1770759]
[1738841370728,0.09361092,199.63,199.6,0.25098]
[1738841370940,0.09361092,199.63,199.61,10.53679604]
[1738841371439,0.09804981,199.65,199.63,0.12549]
[1738841371735,0.063,199.72,199.67,20.0]
[1738841371943,0.063,199.72,199.67,69.42580175]
[1738841372132,0.063,199.72,199.67,68.42580175]
[1738841372437,30.063,199.72,199.67,34.66826235]
[1738841372938,0.063,199.72,199.67,35.54478232]
[1738841373135,0.063,199.72,199.67,35.92125232]
[1738841373318,0.063,199.72,199.67,75.56150172]
[1738841373513,0.063,199.72,199.67,76.56150172]
[1738841373717,0.063,199.72,199.71,9.66006235]
[1738841374710,0.063,199.72,199.71,14.66726235]
[1738841377454,0.063,199.72,199.71,14.79275235]
[1738841378157,0.063,199.72,199.71,15.04373235]
[1738841378446,0.063,199.72,199.71,16.16922235]
[1738841378949,0.063,199.72,199.71,17.16922235]
[1738841379315,0.063,199.77,199.73,0.12549]
[1738841379545,0.063,199.77,199.76,9.66006235]
[1738841379838,0.063,199.77,199.76,14.66606235]
[1738841387435,0.063,199.77,199.76,14.91704235]
[1738841388157,0.1686004,199.77,199.76,15.04253235]
[1738841390155,0.1686004,199.77,199.76,14.79155235]
[1738841399182,0.10878267,199.78,199.76,14.79155235]
[1738841399183,0.10878267,199.78,199.77,0.25098]
[1738841399371,0.10878267,199.78,199.77,10.66163981]
[1738841400086,0.10878267,199.78,199.77,9.78555235]
[1738841401150,0.10878267,199.78,199.77,14.79125235]
[1738841402874,0.10878267,199.78,199.77,15.04223235]
[1738841403055,0.10878267,199.78,199.77,15.16772235]
[1738841403670,0.10878267,199.78,199.77,15.91833386]
[1738841404249,0.10878267,199.78,199.77,29.33018239]
[1738841404558,0.10878267,199.78,199.77,31.33018239]
[1738841404769,0.10878267,199.78,199.77,69.97043179]
[1738841404964,0.09889772,199.79,199.78,0.37647]
[1738841405285,0.09889772,199.79,199.78,10.03653235]
[1738841405852,0.09889772,199.79,199.78,11.03653235]
[1738841406873,0.09366825,199.8,199.79,6.25618]
[1738841407057,0.09099514,199.81,199.8,1.50196]
[1738841407249,0.09099514,199.81,199.8,49.80227175]
[1738841408174,0.09100361,199.85,199.8,49.80227175]
[1738841408175,0.0836852,199.85,199.84,20.37647]
[1738841408479,0.10609768,199.87,199.86,20.50196]
[1738841408650,0.10609768,199.87,199.86,30.91230046]
[1738841409507,0.10609768,199.87,199.86,35.91580046]
[1738841410098,0.10609768,199.87,199.85,9.66006235]
[1738841410391,30.0,199.86,199.82,9.66006235]
[1738841410690,30.0,199.86,199.83,9.66006235]
[1738841410906,30.0,199.86,199.8,0.37647]
[1738841410907,0.10609768,199.87,199.81,0.12549]
[1738841411090,0.10609768,199.87,199.86,9.66006235]
[1738841411573,0.10609768,199.87,199.85,9.66006235]
[1738841411985,0.10609768,199.87,199.86,9.66006235]
[1738841412894,0.10609768,199.87,199.86,10.03653235]
[1738841413211,0.10609768,199.87,199.86,30.16202235]
[1738841413510,0.10609768,199.87,199.86,35.16552235]
[1738841413706,0.15586526,199.88,199.87,0.25098]
[1738841414004,0.15586526,199.88,199.87,10.661277]
[1738841414689,0.15586526,199.88,199.87,21.0265164]
[1738841415293,0.15586526,199.88,199.87,20.15079175]
[1738841416380,0.15586526,199.88,199.87,20.40177175]
[1738841417026,0.15586526,199.88,199.87,21.27755185]
[1738841417302,0.15586526,199.88,199.87,22.27755185]
[1738841417496,0.15586526,199.88,199.87,20.52726175]
[1738841417698,0.15586526,199.88,199.87,20.40177175]
[1738841419588,0.15586526,199.88,199.87,20.52726175]
[1738841420319,0.15586526,199.88,199.87,21.27747614]
[1738841420908,0.15586526,199.88,199.87,20.52726175]
[1738841421500,0.15586526,199.88,199.87,20.40177175]
[1738841421931,0.15586526,199.88,199.87,20.52726175]
[1738841422404,0.15586526,199.88,199.87,49.71144983]
[1738841422615,0.10234946,199.89,199.88,14.91380853]
[1738841422803,0.10234946,199.89,199.88,44.95801203]
[1738841423316,0.10234946,199.89,199.88,49.96101203]
[1738841426145,0.063,199.92,199.89,14.91380853]
[1738841426356,0.063,199.92,199.91,49.93591028]
[1738841426629,0.063,199.97,199.96,0.25098]
[1738841426830,0.063,199.97,199.96,15.27308175]
[1738841427545,0.063,199.97,199.96,40.52506175]
[1738841428210,0.16224386,199.97,199.96,35.14759175]
[1738841428426,0.16224386,199.97,199.96,15.02210175]
[1738841428633,30.0,199.96,199.94,15.02210175]
[1738841429933,0.16224386,199.97,199.95,15.02210175]
[1738841430131,0.16224386,199.97,199.96,15.14759175]
[1738841430336,0.16224386,199.97,199.96,15.02210175]
[1738841430655,0.16224386,199.97,199.94,15.02210175]
[1738841431174,0.16224386,199.97,199.95,15.02210175]
[1738841433067,30.0,199.96,199.94,15.02210175]
[1738841433458,30.0,199.96,199.92,5.12729]
[1738841433459,30.0,199.94,199.92,15.02210175]
[1738841433678,30.0,199.92,199.9,15.02210175]
[1738841433983,30.0,199.92,199.89,15.02210175]
[1738841434560,5.0016,199.94,199.88,15.02210175]
[1738841434561,30.0,199.9,199.88,15.02210175]
[1738841434881,30.0,199.9,199.87,15.05210175]
[1738841435055,30.0,199.9,199.87,0.03]
[1738841435374,30.0,199.9,199.87,15.05210175]
[1738841435965,30.0,199.88,199.87,0.03]
[1738841436175,45.02210175,199.88,199.87,0.03]
[1738841436482,48.90210175,199.88,199.87,0.03]
[1738841436676,48.90210175,199.88,199.77,0.03]
[1738841436677,30.0,199.8,199.77,0.03]
[1738841436983,30.0,199.78,199.77,0.03]
[1738841437778,44.63596494,199.78,199.77,0.03]
[1738841437982,30.0,199.73,199.72,0.03]
[1738841438370,30.0,199.75,199.72,0.03]
[1738841438693,30.0,199.77,199.74,15.05116237]
[1738841439005,30.0,199.75,199.72,15.08116237]
[1738841439290,5.0052,199.79,199.72,0.03]
[1738841439291,30.0,199.73,199.72,0.03]
[1738841439669,30.0,199.73,199.72,15.08116237]
[1738841440007,30.0,199.73,199.72,0.03]
[1738841440567,45.05116237,199.73,199.72,0.03]
[1738841440774,66.4160109,199.73,199.72,0.03]
[1738841440987,53.00416237,199.73,199.72,0.03]
[1738841441189,37.953,199.73,199.72,0.03]
[1738841442080,53.00416237,199.73,199.72,0.03]
[1738841442560,67.4160109,199.73,199.72,0.03]
[1738841443195,30.0,199.68,199.67,0.03]
[1738841446000,35.008,199.68,199.67,0.03]
[1738841448165,63.57033416,199.68,199.67,0.03]
[1738841449169,50.15848563,199.68,199.67,0.03]
[1738841449893,63.57033416,199.68,199.67,0.03]
[1738841450298,64.57033416,199.68,199.67,0.03]
[1738841450501,50.15848563,199.68,199.67,0.03]
[1738841450707,39.06732326,199.68,199.67,0.03]
[1738841450919,54.11848563,199.68,199.67,0.03]
[1738841453620,39.06732326,199.68,199.67,0.03]
[1738841455587,54.11848563,199.68,199.67,0.03]
[1738841455788,39.06732326,199.68,199.67,0.03]
[1738841456597,54.11848563,199.68,199.67,0.03]
[1738841457191,39.06732326,199.68,199.67,0.03]
[1738841457396,35.10732326,199.68,199.67,0.03]
[1738841458795,30.09932326,199.68,199.67,0.03]
[1738841459001,0.09932326,199.68,199.67,15.08116237]
[1738841459187,30.09932326,199.68,199.67,15.08116237]
[1738841459707,30.09932326,199.68,199.67,0.03]
[1738841459914,50.15848563,199.68,199.67,0.03]
[1738841460596,15.05116237,199.67,199.66,0.0001]
[1738841460788,21.05936237,199.67,199.66,0.0001]
[1738841460990,5.0082,199.67,199.66,0.0001]
[1738841462194,30.09932326,199.68,199.66,0.0001]
[1738841462516,30.09932326,199.68,199.67,15.05116237]
[1738841462815,0.09932326,199.68,199.67,15.05116237]
[1738841463512,30.09932326,199.68,199.67,15.05116237]
[1738841464211,30.09932326,199.68,199.66,0.0001]
[1738841464412,30.09932326,199.68,199.67,15.05116237]
[1738841464787,0.09932326,199.68,199.67,15.05116237]
[1738841464991,0.09932326,199.68,199.67,15.17665237]
[1738841465910,0.09932326,199.68,199.67,15.42763237]
[1738841466420,0.09932326,199.68,199.67,20.56132237]
[1738841466596,0.09932326,199.68,199.67,51.02433327]
[1738841466796,0.09932326,199.68,199.67,20.56132237]
[1738841467095,0.09932326,199.68,199.66,15.05126237]
[1738841467920,0.09932326,199.68,199.67,15.05116237]
[1738841468137,0.20479969,199.68,199.67,15.05116237]
[1738841468303,30.10547643,199.68,199.66,0.0001]
[1738841469236,30.10547643,199.68,199.63,5.13459]
[1738841469426,30.10547643,199.68,199.65,15.05116237]
[1738841470742,30.0,199.65,199.61,15.05116237]
[1738841471221,30.0,199.65,199.62,15.05116237]
[1738841473025,30.0,199.65,199.63,15.05116237]
[1738841473204,30.0,199.67,199.64,15.05116237]
[1738841473396,30.0,199.67,199.65,15.05116237]
[1738841474023,0.10547643,199.68,199.66,15.05116237]
[1738841474214,0.10547643,199.68,199.67,15.05116237]
[1738841474902,0.10547643,199.68,199.67,15.55312237]
[1738841475206,0.0986854,199.69,199.67,52.62733327]
[1738841475512,0.0986854,199.69,199.68,31.3552111]
[1738841475712,0.09465253,199.7,199.69,1.37647]
[1738841475947,0.09465253,199.7,199.69,51.47879474]
[1738841476736,0.09475528,199.73,199.71,0.12549]
[1738841477042,0.09475528,199.73,199.71,16.05297771]
[1738841477211,0.09475528,199.73,199.71,20.18385237]
[1738841477720,0.09475528,199.73,199.71,20.43483237]
[1738841477922,0.09475528,199.73,199.71,20.18385237]
[1738841478917,30.09475528,199.73,199.71,15.05116237]
[1738841479233,30.09475528,199.73,199.7,11.32334467]
[1738841479443,30.0,199.71,199.7,11.32334467]
[1738841479602,30.0,199.71,199.69,15.05116237]
[1738841479809,30.0,199.71,199.68,15.05116237]
[1738841480217,30.0,199.69,199.67,15.05116237]
[1738841480830,30.0,199.65,199.64,15.05116237]
[1738841481033,30.0,199.63,199.62,15.05116237]
[1738841481235,30.0,199.63,199.61,15.05116237]
[1738841481439,30.0,199.63,199.62,15.05116237]
[1738841483748,5.0083,199.67,199.58,15.05116237]
[1738841483749,30.0,199.59,199.58,15.05116237]
[1738841483964,30.0,199.59,199.57,15.08116237]
[1738841484468,30.0,199.59,199.58,15.05116237]
[1738841484745,30.0,199.59,199.57,0.03]
[1738841484746,30.0,199.59,199.57,15.08116237]
[1738841485465,30.0,199.59,199.58,15.05116237]
[1738841485650,30.0,199.61,199.58,15.05116237]
[1738841485959,30.0,199.6,199.59,15.05116237]
[1738841486158,30.0,199.6,199.58,15.05116237]
[1738841486454,30.0,199.58,199.57,15.08116237]
[1738841487337,30.0,199.58,199.57,0.03]
[1738841488131,30.09089013,199.58,199.57,0.03]
[1738841489322,30.09089013,199.58,199.57,15.08116237]
[1738841489541,0.09089013,199.58,199.57,15.08116237]
[1738841490835,0.09089013,199.58,199.57,20.09186237]
[1738841491042,0.09089013,199.58,199.57,20.46833237]
[1738841492555,0.09089013,199.58,199.57,20.21735237]
[1738841492851,0.09089013,199.58,199.57,15.08116237]
[1738841493239,0.09089013,199.58,199.57,20.09186237]
[1738841493443,0.09089013,199.58,199.57,20.21735237]
[1738841494536,0.09089013,199.58,199.57,15.08116237]
[1738841496357,0.09089013,199.58,199.57,20.21735237]
[1738841496569,0.09089013,199.58,199.57,15.08116237]
[1738841497467,0.09089013,199.58,199.57,0.03]
[1738841498758,0.09089013,199.58,199.57,15.08116237]
[1738841503438,5.10139013,199.58,199.57,0.03]
[1738841503846,20.1525525,199.58,199.57,0.03]
[1738841505157,5.10139013,199.58,199.57,0.03]
[1738841505348,20.1525525,199.58,199.57,0.03]
[1738841505750,5.10139013,199.58,199.57,0.03]
[1738841506365,20.1525525,199.58,199.57,0.03]
[1738841506543,33.56440103,199.58,199.57,0.03]
[1738841506940,20.1525525,199.58,199.57,0.0001]
[1738841507178,20.1525525,199.58,199.52,0.03]
[1738841507179,30.0,199.53,199.52,0.03]
[1738841507364,30.0,199.53,199.41,15.05116237]
[1738841507365,30.0,199.48,199.41,15.05116237]
[1738841507663,30.0,199.48,199.44,15.05116237]
[1738841508235,30.09133086,199.48,199.45,15.05116237]
[1738841508439,30.09133086,199.48,199.46,15.08116237]
[1738841509962,30.09133086,199.48,199.47,15.08116237]
[1738841511767,0.09133086,199.48,199.47,28.54382237]
[1738841512075,0.10188311,199.49,199.48,0.25098]
[1738841512279,0.10188311,199.49,199.48,30.35330474]
[1738841512475,0.09691185,199.5,199.48,35.49179474]
[1738841512682,0.09304476,199.51,199.5,0.25098]
[1738841512861,0.09304476,199.51,199.5,30.35330474]
[1738841514051,0.05589259,199.51,199.5,30.35330474]
[1738841514582,0.05589259,199.51,199.5,35.36580474]
[1738841515453,0.05589259,199.51,199.5,20.31464237]
[1738841515890,0.05589259,199.51,199.5,35.36580474]
[1738841516273,0.05589259,199.51,199.5,20.06366237]
[1738841517884,0.05589259,199.51,199.5,20.18915237]
[1738841518186,0.05589259,199.51,199.5,35.49129474]
[1738841518751,0.05589259,199.51,199.5,35.61678474]
[1738841518955,0.10618083,199.52,199.51,0.50196]
[1738841519153,8.083e-05,199.52,199.51,29.71650927]
[1738841519379,8.083e-05,199.52,199.51,28.9649709]
[1738841519956,4.083e-05,199.53,199.52,13.41184853]
[1738841520161,6.07e-06,199.55,199.54,13.91380853]
[1738841520375,6.07e-06,199.55,199.54,29.71637521]
[1738841520598,9.665e-05,199.56,199.55,13.91380853]
[1738841520895,9.665e-05,199.56,199.55,36.7508709]
[1738841521758,30.0,199.64,199.59,20.12549]
[1738841521961,30.0,199.64,199.62,15.05116237]
[1738841522575,30.0,199.64,199.61,15.05116237]
[1738841522996,30.0,199.62,199.58,20.06136237]
[1738841523191,30.0,199.62,199.59,15.05116237]
[1738841523400,30.0,199.62,199.58,5.0102]
[1738841523401,30.0,199.62,199.6,15.05116237]
[1738841524085,30.0,199.62,199.59,15.05116237]
[1738841524602,30.0,199.57,199.56,15.05116237]
[1738841524897,30.0,199.59,199.56,15.05116237]
[1738841525106,30.0,199.59,199.57,15.05116237]
[1738841525994,5.0097,199.61,199.53,15.05116237]
[1738841525995,30.0,199.55,199.53,15.05116237]
[1738841526175,30.0,199.53,199.51,15.05116237]
[1738841526593,30.0,199.55,199.51,15.05116237]
[1738841526803,30.0,199.53,199.51,20.06316237]
[1738841526968,30.0,199.55,199.52,15.05116237]
[1738841527174,30.0,199.55,199.54,15.05116237]
[1738841527399,30.0,199.55,199.53,15.05116237]
[1738841528195,0.10384266,199.54,199.53,15.05116237]
[1738841528895,0.10384266,199.54,199.52,15.05116237]
[1738841530091,0.10384266,199.54,199.53,15.05116237]
[1738841532319,0.10384266,199.54,199.53,20.06286237]
[1738841532473,0.10384266,199.54,199.53,20.18835237]
[1738841532674,0.10384266,199.54,199.53,15.05116237]
[1738841532972,0.10384266,199.54,199.51,15.05116237]
[1738841532973,30.0,199.53,199.51,15.05116237]
[1738841533893,0.10384266,199.54,199.52,15.05116237]
[1738841534093,0.10384266,199.54,199.53,35.17665237]
[1738841534392,0.10384266,199.54,199.53,40.06286237]
[1738841534997,0.10384266,199.54,199.53,15.05116237]
[1738841535294,30.0,199.52,199.51,15.05116237]
[1738841536306,30.10384266,199.54,199.51,15.05116237]
[1738841536507,30.10384266,199.54,199.53,15.05116237]
[1738841537393,30.10384266,199.54,199.52,15.05116237]
[1738841538111,30.0,199.5,199.49,15.05116237]
[1738841538313,30.0,199.5,199.48,15.05116237]
[1738841538814,30.0,199.5,199.49,15.05116237]
[1738841539610,30.0,199.52,199.49,15.05116237]
[1738841539918,30.10384266,199.54,199.51,15.05116237]
[1738841540100,30.10384266,199.54,199.53,15.05116237]
[1738841541999,30.0,199.53,199.51,15.05116237]
[1738841542202,30.0,199.51,199.5,15.05116237]
[1738841542438,30.0,199.48,199.47,15.08116237]
[1738841543145,30.0,199.48,199.47,0.03]
[1738841544300,35.013,199.48,199.47,0.03]
[1738841544708,30.0,199.48,199.47,0.03]
[1738841545940,30.0,199.48,199.47,15.08116237]
[1738841547848,30.0,199.48,199.47,0.03]
[1738841548153,35.013,199.48,199.47,0.03]
[1738841548440,35.11452116,199.48,199.47,0.03]
[1738841550559,30.10152116,199.48,199.47,0.03]
[1738841553240,30.10152116,199.48,199.47,15.08116237]
[1738841554532,30.10152116,199.48,199.47,0.03]
[1738841555323,30.10152116,199.48,199.47,15.08116237]
[1738841557755,45.15268353,199.48,199.47,0.03]
[1738841558054,50.16568353,199.48,199.47,0.03]
[1738841558255,63.57753206,199.48,199.47,0.03]
[1738841558541,63.57753206,199.48,199.46,0.03]
[1738841558542,17.05116237,199.47,199.46,0.0001]
[1738841558742,35.8526809,199.47,199.46,0.0001]
[1738841559047,35.8526809,199.47,199.35,15.08116237]
[1738841559048,30.0,199.36,199.35,0.03]
[1738841560419,30.0,199.36,199.35,15.08116237]
[1738841561030,30.0,199.38,199.35,15.08116237]
[1738841561230,30.0,199.38,199.36,15.05116237]
[1738841561447,4.04,199.4,199.35,15.08116237]
[1738841561448,30.0,199.36,199.35,15.08116237]
[1738841562330,30.0,199.36,199.35,0.03]
[1738841563060,35.016,199.36,199.35,0.03]
[1738841563234,30.0,199.23,199.2,15.05116237]
[1738841563422,30.0,199.21,199.18,15.05116237]
[1738841563629,30.0,199.21,199.19,15.05116237]
[1738841564149,30.0,199.19,199.17,15.05116237]
[1738841564334,30.0,199.19,199.17,14.55116237]
[1738841564727,30.0,199.19,199.18,24.22138669]
[1738841565125,30.0,199.19,199.1,24.22138669]
[1738841565349,30.0,199.17,199.14,24.22138669]
[1738841565751,30.0,199.17,199.15,24.22138669]
[1738841565925,30.0,199.17,199.16,24.22138669]
[1738841566121,30.0,199.19,199.16,24.22138669]
[1738841566321,30.0,199.17,199.16,24.22138669]
[1738841566560,30.0,199.16,199.14,24.22138669]
[1738841566743,30.0,199.18,199.15,24.22138669]
[1738841566926,30.0,199.18,199.17,24.22138669]
[1738841567546,30.0,199.18,199.16,24.22138669]
[1738841568151,0.1010662,199.17,199.16,24.22138669]
[1738841570755,0.1010662,199.17,199.16,29.24238669]
[1738841578037,0.1010662,199.17,199.16,29.27238669]
[1738841582967,0.1010662,199.17,198.99,25.05]
[1738841582968,873.81266258,199.0,198.99,25.05]
[1738841583263,873.81266258,199.0,198.99,72.2668756]
[1738841583264,287.51136019,199.0,198.99,72.2668756]
[1738841583451,195.44948424,199.0,198.99,72.2668756]
[1738841583632,2.0,199.16,198.99,72.2668756]
[1738841583836,2.0,199.14,198.99,73.54357758]
[1738841584158,2.0,199.14,198.99,126.30587758]
[1738841584335,1.0,199.1,199.0,24.22138669]
[1738841584529,1.0,199.09,199.01,0.75336418]
[1738841584732,1.0,199.09,199.03,20.0]
[1738841585158,1.0,199.09,199.04,0.37647]
[1738841585565,1.0,199.09,199.08,24.22138669]
[1738841585729,1.0,199.09,199.08,29.24448669]
[1738841586151,2.0,199.09,199.08,29.24448669]
[1738841586390,31.0,199.08,199.07,24.22138669]
[1738841586554,32.0,199.07,199.06,24.22138669]
[1738841586759,1.5927,199.1,198.99,0.03]
[1738841586760,31.0,199.0,198.99,0.03]
[1738841586961,32.0,199.0,198.99,0.03]
[1738841588273,33.75265981,199.0,198.99,0.03]
[1738841590787,1.09755981,199.0,198.99,15.18541149]
[1738841591084,0.09755981,199.0,198.99,15.18541149]
[1738841591793,32.09755981,199.0,198.99,0.03]
[1738841593361,2.09755981,199.0,198.99,0.03]
[1738841593664,2.09755981,199.0,198.99,15.18541149]
[1738841593665,0.09755981,199.0,198.99,15.18541149]
[1738841594074,0.09755981,199.0,198.94,0.3]
[1738841594075,32.0,198.95,198.94,0.3]
[1738841594886,47.15541149,198.95,198.94,0.3]
[1738841595776,32.0,198.95,198.94,0.3]
[1738841596458,33.5909,198.95,198.94,0.3]
[1738841597665,32.0,198.95,198.94,5.3266]
[1738841597875,32.0,198.95,198.94,0.3]